[Event "Late-Titled-Tuesday-Blitz-August-29-2023"]
[Site "Chess.com"]
[Date "2023.08.29"]
[Round "6"]
[White "Alexei_Gubajdullin"]
[Black "whiteglovethief"]
[Result "0-1"]
[WhiteElo "2610"]
[BlackElo "2462"]
[TimeControl "180+1"]
[EndTime "15:05:40 PDT"]
[Termination "whiteglovethief won on time"]

1. d4 {[%clk 0:03:00]} 1... d5 {[%clk 0:02:54.1]} 2. Nf3 {[%clk 0:02:59.9]} 2...
e6 {[%clk 0:02:54.6]} 3. Bf4 {[%clk 0:02:59.8]} 3... Nf6 {[%clk 0:02:51.6]} 4.
Nbd2 {[%clk 0:02:59.4]} 4... Bd6 {[%clk 0:02:50.8]} 5. Bg3 {[%clk 0:02:59.3]}
5... O-O {[%clk 0:02:50.4]} 6. e3 {[%clk 0:02:59.4]} 6... c5 {[%clk 0:02:50.4]}
7. c3 {[%clk 0:02:59.3]} 7... b6 {[%clk 0:02:47.6]} 8. Bd3 {[%clk 0:02:58.5]}
8... Qc7 {[%clk 0:02:46.4]} 9. Ne5 {[%clk 0:02:58.3]} 9... Bb7 {[%clk
0:02:43.6]} 10. f4 {[%clk 0:02:57.2]} 10... Ne4 {[%clk 0:02:43.8]} 11. Bxe4
{[%clk 0:02:39.9]} 11... dxe4 {[%clk 0:02:42.3]} 12. Ndc4 {[%clk 0:02:39.6]}
12... Nd7 {[%clk 0:02:34.6]} 13. Nxd6 {[%clk 0:02:34.5]} 13... Qxd6 {[%clk
0:02:35.5]} 14. f5 {[%clk 0:02:18]} 14... exf5 {[%clk 0:02:25.3]} 15. Nxf7
{[%clk 0:02:17.6]} 15... Qe7 {[%clk 0:02:20]} 16. Ne5 {[%clk 0:02:11.9]} 16...
Nxe5 {[%clk 0:02:16.8]} 17. Bxe5 {[%clk 0:02:11.1]} 17... cxd4 {[%clk
0:02:14.8]} 18. cxd4 {[%clk 0:02:08]} 18... Ba6 {[%clk 0:02:08.7]} 19. Qb3+
{[%clk 0:02:04.5]} 19... Kh8 {[%clk 0:02:08.8]} 20. Rc1 {[%clk 0:01:57.5]} 20...
Rac8 {[%clk 0:02:07]} 21. Kd2 {[%clk 0:01:57.4]} 21... Qg5 {[%clk 0:01:57.6]}
22. Bg3 {[%clk 0:01:35.3]} 22... h5 {[%clk 0:01:40.2]} 23. Qa3 {[%clk
0:01:10.1]} 23... Bd3 {[%clk 0:01:37.2]} 24. Qd6 {[%clk 0:01:09.4]} 24... f4
{[%clk 0:01:19.3]} 25. exf4 {[%clk 0:01:04.6]} 25... Qg4 {[%clk 0:01:17.8]} 26.
Rhe1 {[%clk 0:00:45.4]} 26... h4 {[%clk 0:01:17.7]} 27. Rc7 {[%clk 0:00:12.5]}
27... hxg3 {[%clk 0:01:02.8]} 28. hxg3 {[%clk 0:00:11.6]} 28... Rcd8 {[%clk
0:00:43.9]} 29. Qe5 {[%clk 0:00:03.5]} 29... Rf6 {[%clk 0:00:27.6]} 30. d5
{[%clk 0:00:02.5]} 30... Qxg3 {[%clk 0:00:23.6]} 31. Rh1+ {[%clk 0:00:02.2]}
31... Kg8 {[%clk 0:00:21.5]} 32. Qh5 {[%clk 0:00:01.6]} 32... Qxf4+ {[%clk
0:00:17.7]} 33. Kd1 {[%clk 0:00:01.7]} 33... Qxc7 {[%clk 0:00:11.9]} 34. Qh8+
{[%clk 0:00:01.5]} 34... Kf7 {[%clk 0:00:12]} 35. Qh5+ {[%clk 0:00:01.6]} 35...
Ke7 {[%clk 0:00:06.5]} 36. Qe5+ {[%clk 0:00:01.2]} 36... Qxe5 {[%clk 0:00:04.9]}
0-1

[Event "Late-Titled-Tuesday-Blitz-August-29-2023"]
[Site "Chess.com"]
[Date "2023.08.29"]
[Round "6"]
[White "ajgreen"]
[Black "Djager97"]
[Result "1-0"]
[WhiteElo "2431"]
[BlackElo "2572"]
[TimeControl "180+1"]
[EndTime "15:05:41 PDT"]
[Termination "ajgreen won on time"]

1. e4 {[%clk 0:03:00.9]} 1... e5 {[%clk 0:02:59.8]} 2. Nf3 {[%clk 0:03:01.5]}
2... Nc6 {[%clk 0:03:00.4]} 3. d4 {[%clk 0:03:02.2]} 3... exd4 {[%clk 0:03:01]}
4. Nxd4 {[%clk 0:03:03.1]} 4... Qh4 {[%clk 0:03:01.1]} 5. Nc3 {[%clk 0:03:02.8]}
5... Bb4 {[%clk 0:03:01.4]} 6. Nb5 {[%clk 0:03:03.2]} 6... Qxe4+ {[%clk
0:03:01]} 7. Be2 {[%clk 0:03:03.8]} 7... Bxc3+ {[%clk 0:02:59.8]} 8. bxc3 {[%clk
0:03:04.6]} 8... Kd8 {[%clk 0:03:00.2]} 9. O-O {[%clk 0:03:03.6]} 9... Nf6
{[%clk 0:02:59.8]} 10. Nd4 {[%clk 0:03:03.9]} 10... Nxd4 {[%clk 0:02:46.7]} 11.
cxd4 {[%clk 0:03:04.8]} 11... d6 {[%clk 0:02:35.6]} 12. Bf3 {[%clk 0:03:03.6]}
12... Qg6 {[%clk 0:02:33.3]} 13. c4 {[%clk 0:03:03.2]} 13... Bg4 {[%clk
0:02:29.1]} 14. Bf4 {[%clk 0:02:49.8]} 14... Re8 {[%clk 0:02:17.5]} 15. Rb1
{[%clk 0:02:46.9]} 15... Rb8 {[%clk 0:02:08.5]} 16. Bg3 {[%clk 0:02:40.9]} 16...
Bxf3 {[%clk 0:02:04.4]} 17. Qxf3 {[%clk 0:02:41.8]} 17... Qe4 {[%clk 0:02:03.1]}
18. Qa3 {[%clk 0:02:36.3]} 18... a6 {[%clk 0:01:54.4]} 19. c5 {[%clk 0:02:32.8]}
19... d5 {[%clk 0:01:07.3]} 20. c6 {[%clk 0:02:26.9]} 20... b6 {[%clk
0:01:07.6]} 21. Qxa6 {[%clk 0:02:21.6]} 21... Qc2 {[%clk 0:01:07.4]} 22. Qa7
{[%clk 0:02:17]} 22... Rc8 {[%clk 0:01:01.5]} 23. Rbc1 {[%clk 0:01:54.7]} 23...
Qf5 {[%clk 0:00:55.3]} 24. h3 {[%clk 0:01:48.3]} 24... Ne4 {[%clk 0:00:52.2]}
25. Bh2 {[%clk 0:01:39]} 25... Re6 {[%clk 0:00:26.4]} 26. f3 {[%clk 0:01:10.1]}
26... Nd2 {[%clk 0:00:23.2]} 27. Rfe1 {[%clk 0:01:08.6]} 27... Nc4 {[%clk
0:00:14.9]} 28. Qa4 {[%clk 0:01:04.3]} 28... Ke7 {[%clk 0:00:13.7]} 29. Bg3
{[%clk 0:00:57.7]} 29... Kf8 {[%clk 0:00:12.4]} 30. Rxe6 {[%clk 0:00:56.6]}
30... fxe6 {[%clk 0:00:08.6]} 31. Re1 {[%clk 0:00:54.8]} 31... Kg8 {[%clk
0:00:08.6]} 32. Kh2 {[%clk 0:00:46.6]} 32... h5 {[%clk 0:00:05.6]} 33. Qb4
{[%clk 0:00:44.6]} 33... Rf8 {[%clk 0:00:05]} 34. Qe7 {[%clk 0:00:43.4]} 34...
Rf6 {[%clk 0:00:04]} 35. Qxc7 {[%clk 0:00:37.8]} 35... Rg6 {[%clk 0:00:04.1]}
36. Re2 {[%clk 0:00:36.2]} 36... Qd3 {[%clk 0:00:03]} 37. Rf2 {[%clk 0:00:33.5]}
37... Kh7 {[%clk 0:00:03.1]} 38. Be5 {[%clk 0:00:31.5]} 38... Ne3 {[%clk
0:00:02.7]} 39. Qxb6 {[%clk 0:00:23.4]} 39... Nf1+ {[%clk 0:00:02.6]} 40. Kg1
{[%clk 0:00:21.8]} 40... Ne3 {[%clk 0:00:02.9]} 41. Qb2 {[%clk 0:00:18.8]} 41...
Nd1 {[%clk 0:00:02.2]} 42. Qd2 {[%clk 0:00:18.9]} 42... Nxf2 {[%clk 0:00:02.3]}
43. Qxf2 {[%clk 0:00:19]} 43... Qd1+ {[%clk 0:00:01.2]} 44. Kh2 {[%clk
0:00:19.1]} 44... Qc1 {[%clk 0:00:01.9]} 45. c7 {[%clk 0:00:19.3]} 1-0

[Event "Late-Titled-Tuesday-Blitz-August-29-2023"]
[Site "Chess.com"]
[Date "2023.08.29"]
[Round "6"]
[White "bascheyaro"]
[Black "HansOnTwitch"]
[Result "1-0"]
[WhiteElo "2832"]
[BlackElo "2988"]
[TimeControl "180+1"]
[EndTime "15:05:42 PDT"]
[Termination "bascheyaro won on time"]

1. d4 {[%clk 0:03:00.9]} 1... Nf6 {[%clk 0:02:56.5]} 2. Nf3 {[%clk 0:03:01]}
2... d5 {[%clk 0:02:55.3]} 3. Bf4 {[%clk 0:03:01.1]} 3... c5 {[%clk 0:02:55.6]}
4. e3 {[%clk 0:03:01.1]} 4... Nc6 {[%clk 0:02:56.3]} 5. Be2 {[%clk 0:03:01.4]}
5... Nh5 {[%clk 0:02:54.3]} 6. Be5 {[%clk 0:03:00.9]} 6... e6 {[%clk 0:02:47.5]}
7. a3 {[%clk 0:02:56.1]} 7... f6 {[%clk 0:02:42.7]} 8. Bg3 {[%clk 0:02:47.3]}
8... cxd4 {[%clk 0:02:27.4]} 9. exd4 {[%clk 0:02:46.7]} 9... g6 {[%clk
0:02:26.7]} 10. Nbd2 {[%clk 0:02:38.7]} 10... Ng7 {[%clk 0:02:24.9]} 11. c4
{[%clk 0:02:34.5]} 11... Nf5 {[%clk 0:02:22.7]} 12. cxd5 {[%clk 0:02:33.9]}
12... exd5 {[%clk 0:02:22.6]} 13. O-O {[%clk 0:02:26.2]} 13... h5 {[%clk
0:02:21.9]} 14. Nh4 {[%clk 0:02:22.7]} 14... Kf7 {[%clk 0:02:13.9]} 15. Ndf3
{[%clk 0:02:09.6]} 15... Qb6 {[%clk 0:01:32.4]} 16. Nxf5 {[%clk 0:02:01.7]}
16... Bxf5 {[%clk 0:01:31.9]} 17. b4 {[%clk 0:02:01.4]} 17... Re8 {[%clk
0:01:26.8]} 18. Rc1 {[%clk 0:01:57]} 18... a6 {[%clk 0:01:25.4]} 19. Bd3 {[%clk
0:01:41.5]} 19... Bxd3 {[%clk 0:01:04.9]} 20. Qxd3 {[%clk 0:01:41.5]} 20... Qb5
{[%clk 0:01:05.6]} 21. Qb3 {[%clk 0:01:32.2]} 21... Na5 {[%clk 0:01:05.2]} 22.
Rc7+ {[%clk 0:01:31.4]} 22... Re7 {[%clk 0:01:05.1]} 23. Ng5+ {[%clk 0:00:53]}
23... fxg5 {[%clk 0:00:45.6]} 24. Qf3+ {[%clk 0:00:52.9]} 24... Kg8 {[%clk
0:00:27]} 25. bxa5 {[%clk 0:00:36.6]} 25... Rxc7 {[%clk 0:00:24.2]} 26. Bxc7
{[%clk 0:00:37.5]} 26... Bg7 {[%clk 0:00:24.6]} 27. Be5 {[%clk 0:00:31.6]} 27...
Qc6 {[%clk 0:00:09.4]} 28. Re1 {[%clk 0:00:27.7]} 28... Bxe5 {[%clk 0:00:09.6]}
29. dxe5 {[%clk 0:00:27.6]} 29... Kg7 {[%clk 0:00:10.2]} 30. e6 {[%clk
0:00:25.6]} 30... Rf8 {[%clk 0:00:10.2]} 31. Qe3 {[%clk 0:00:20]} 31... g4
{[%clk 0:00:06.9]} 32. Qe5+ {[%clk 0:00:19.1]} 32... Kg8 {[%clk 0:00:06.9]} 33.
Qg5 {[%clk 0:00:14.4]} 33... Qe8 {[%clk 0:00:03]} 34. Qxd5 {[%clk 0:00:10.9]}
34... Qe7 {[%clk 0:00:02]} 35. g3 {[%clk 0:00:07.4]} 35... Rf5 {[%clk
0:00:02.1]} 36. Qd7 {[%clk 0:00:07.2]} 36... Kf8 {[%clk 0:00:01.4]} 37. Rc1
{[%clk 0:00:06.6]} 37... Re5 {[%clk 0:00:01.1]} 38. Rc8+ {[%clk 0:00:05.9]} 1-0

[Event "Late-Titled-Tuesday-Blitz-August-29-2023"]
[Site "Chess.com"]
[Date "2023.08.29"]
[Round "6"]
[White "Zkid"]
[Black "XiaoKangZhong"]
[Result "1-0"]
[WhiteElo "2839"]
[BlackElo "2550"]
[TimeControl "180+1"]
[EndTime "15:05:42 PDT"]
[Termination "Zkid won on time"]

1. e4 {[%clk 0:02:42.7]} 1... d5 {[%clk 0:02:57.3]} 2. exd5 {[%clk 0:02:42]}
2... Qxd5 {[%clk 0:02:58.2]} 3. Nc3 {[%clk 0:02:40.6]} 3... Qa5 {[%clk 0:02:58]}
4. d4 {[%clk 0:02:39.6]} 4... Nf6 {[%clk 0:02:55.2]} 5. Nf3 {[%clk 0:02:39.8]}
5... Bf5 {[%clk 0:02:53.3]} 6. Bd2 {[%clk 0:02:38.7]} 6... e6 {[%clk 0:02:48.3]}
7. Bc4 {[%clk 0:02:27.2]} 7... Bb4 {[%clk 0:02:42.1]} 8. a3 {[%clk 0:02:24]}
8... Bxc3 {[%clk 0:02:41.5]} 9. Bxc3 {[%clk 0:02:24.9]} 9... Qb6 {[%clk
0:02:41.2]} 10. O-O {[%clk 0:01:59.6]} 10... O-O {[%clk 0:02:35.4]} 11. a4
{[%clk 0:01:49.6]} 11... a5 {[%clk 0:02:29.6]} 12. Qe2 {[%clk 0:01:42.8]} 12...
Rd8 {[%clk 0:02:23]} 13. Ra3 {[%clk 0:01:40.1]} 13... Nc6 {[%clk 0:02:18.2]} 14.
Rb3 {[%clk 0:01:37.6]} 14... Qa7 {[%clk 0:02:18.4]} 15. Bb5 {[%clk 0:01:34]}
15... Ne7 {[%clk 0:02:12.5]} 16. Ne5 {[%clk 0:01:32]} 16... Ne4 {[%clk
0:02:03.2]} 17. Rd1 {[%clk 0:01:12]} 17... Nxc3 {[%clk 0:02:01.6]} 18. bxc3
{[%clk 0:01:08.8]} 18... Nd5 {[%clk 0:01:54.5]} 19. Qf3 {[%clk 0:01:01.1]} 19...
Nb6 {[%clk 0:01:19.4]} 20. Bd3 {[%clk 0:00:56.4]} 20... f6 {[%clk 0:01:05.4]}
21. Bxf5 {[%clk 0:00:52.5]} 21... exf5 {[%clk 0:01:05.5]} 22. Nd3 {[%clk
0:00:51]} 22... g6 {[%clk 0:00:57.9]} 23. Nc5 {[%clk 0:00:40.2]} 23... Rab8
{[%clk 0:00:35.9]} 24. g4 {[%clk 0:00:34.9]} 24... fxg4 {[%clk 0:00:24.3]} 25.
Qxf6 {[%clk 0:00:33.8]} 25... Nd5 {[%clk 0:00:24.3]} 26. Qe6+ {[%clk 0:00:32.2]}
26... Kg7 {[%clk 0:00:21.3]} 27. Qe5+ {[%clk 0:00:30.5]} 27... Kg8 {[%clk
0:00:18.7]} 28. c4 {[%clk 0:00:19.8]} 28... Nb4 {[%clk 0:00:09.6]} 29. c3 {[%clk
0:00:19.5]} 29... Nc6 {[%clk 0:00:06]} 30. Qe6+ {[%clk 0:00:19.9]} 30... Kg7
{[%clk 0:00:06.2]} 31. Re1 {[%clk 0:00:18.2]} 31... Rf8 {[%clk 0:00:03.4]} 32.
Qxg4 {[%clk 0:00:17.1]} 32... Rf7 {[%clk 0:00:03.7]} 33. Ne6+ {[%clk 0:00:15]}
33... Kg8 {[%clk 0:00:04.1]} 34. Ng5 {[%clk 0:00:15.2]} 34... Rf6 {[%clk
0:00:03.1]} 35. Re6 {[%clk 0:00:14.1]} 35... Rbf8 {[%clk 0:00:02.6]} 36. Rxf6
{[%clk 0:00:14.7]} 36... Rxf6 {[%clk 0:00:03.5]} 37. Qc8+ {[%clk 0:00:15.1]}
37... Kg7 {[%clk 0:00:03.9]} 38. Qxc7+ {[%clk 0:00:15.2]} 38... Kh6 {[%clk
0:00:04.3]} 39. h4 {[%clk 0:00:15.1]} 39... Kh5 {[%clk 0:00:03.3]} 40. Qxh7+
{[%clk 0:00:14.5]} 40... Kg4 {[%clk 0:00:03.9]} 41. Qd7+ {[%clk 0:00:12.6]}
41... Kf4 {[%clk 0:00:04.2]} 42. Qh3 {[%clk 0:00:09.9]} 42... Nxd4 {[%clk
0:00:02.8]} 43. cxd4 {[%clk 0:00:09.9]} 1-0

[Event "Late-Titled-Tuesday-Blitz-August-29-2023"]
[Site "Chess.com"]
[Date "2023.08.29"]
[Round "6"]
[White "PepeCuenca"]
[Black "Piotrek1979"]
[Result "1-0"]
[WhiteElo "2718"]
[BlackElo "2466"]
[TimeControl "180+1"]
[EndTime "15:05:44 PDT"]
[Termination "PepeCuenca won on time"]

1. e4 {[%clk 0:03:00.9]} 1... d6 {[%clk 0:02:59.4]} 2. d4 {[%clk 0:02:59.9]}
2... Nf6 {[%clk 0:03:00]} 3. Nc3 {[%clk 0:03:00.3]} 3... Nc6 {[%clk 0:02:59.3]}
4. Nge2 {[%clk 0:02:52.7]} 4... g6 {[%clk 0:02:54.1]} 5. g3 {[%clk 0:02:49.3]}
5... Bg4 {[%clk 0:02:52.7]} 6. Bg2 {[%clk 0:02:47.8]} 6... Bg7 {[%clk
0:02:47.9]} 7. h3 {[%clk 0:02:47.4]} 7... Bd7 {[%clk 0:02:46]} 8. Be3 {[%clk
0:02:45.7]} 8... Qc8 {[%clk 0:02:42.3]} 9. Qd2 {[%clk 0:02:42.4]} 9... h5 {[%clk
0:02:32.5]} 10. O-O-O {[%clk 0:02:40.9]} 10... b5 {[%clk 0:02:19.4]} 11. Nxb5
{[%clk 0:02:26.8]} 11... Rb8 {[%clk 0:02:17.8]} 12. c4 {[%clk 0:02:24.8]} 12...
a6 {[%clk 0:02:06.8]} 13. Nbc3 {[%clk 0:02:21.2]} 13... Na5 {[%clk 0:02:05.8]}
14. Qd3 {[%clk 0:02:13.6]} 14... Rb4 {[%clk 0:02:02.5]} 15. b3 {[%clk
0:02:10.4]} 15... Qb8 {[%clk 0:01:58.3]} 16. e5 {[%clk 0:01:49.3]} 16... Bf5
{[%clk 0:01:40.6]} 17. exf6 {[%clk 0:01:32.5]} 17... Bxd3 {[%clk 0:01:40.7]} 18.
fxg7 {[%clk 0:01:32.2]} 18... Rg8 {[%clk 0:01:40.1]} 19. Rxd3 {[%clk 0:01:31.4]}
19... Rxg7 {[%clk 0:01:19.7]} 20. Nd5 {[%clk 0:01:26.6]} 20... Rb7 {[%clk
0:01:03.9]} 21. Bd2 {[%clk 0:01:24.8]} 21... Nxc4 {[%clk 0:00:59.9]} 22. Bc3
{[%clk 0:00:49.9]} 22... Na3 {[%clk 0:00:36.3]} 23. Bb2 {[%clk 0:00:44]} 23...
Nb5 {[%clk 0:00:33.8]} 24. Re1 {[%clk 0:00:40.5]} 24... a5 {[%clk 0:00:23.2]}
25. Nec3 {[%clk 0:00:27.4]} 25... c6 {[%clk 0:00:23]} 26. Nxb5 {[%clk 0:00:19]}
26... Rxb5 {[%clk 0:00:23.6]} 27. Nxe7 {[%clk 0:00:15]} 27... Kf8 {[%clk
0:00:20]} 28. Nxc6 {[%clk 0:00:12.9]} 28... Qc7 {[%clk 0:00:15]} 29. d5 {[%clk
0:00:12.9]} 29... f6 {[%clk 0:00:06.7]} 30. Rde3 {[%clk 0:00:11.4]} 30... Rf7
{[%clk 0:00:06.2]} 31. Kb1 {[%clk 0:00:10.1]} 31... Kg7 {[%clk 0:00:06.4]} 32.
a4 {[%clk 0:00:09.6]} 32... Rc5 {[%clk 0:00:06.4]} 33. Bd4 {[%clk 0:00:08.3]}
33... Qb6 {[%clk 0:00:04.2]} 34. Bxc5 {[%clk 0:00:08.5]} 34... Qxc5 {[%clk
0:00:05.1]} 35. R1e2 {[%clk 0:00:07.2]} 35... Qa3 {[%clk 0:00:04.8]} 36. Be4
{[%clk 0:00:04.8]} 36... Rb7 {[%clk 0:00:04.5]} 37. Bc2 {[%clk 0:00:05]} 37...
Kh6 {[%clk 0:00:01.5]} 38. g4 {[%clk 0:00:05]} 38... Qxa4 {[%clk 0:00:01.6]} 39.
g5+ {[%clk 0:00:04.2]} 1-0

[Event "Late-Titled-Tuesday-Blitz-August-29-2023"]
[Site "Chess.com"]
[Date "2023.08.29"]
[Round "6"]
[White "XDPS"]
[Black "NigelDwarf"]
[Result "1-0"]
[WhiteElo "2877"]
[BlackElo "2557"]
[TimeControl "180+1"]
[EndTime "15:05:49 PDT"]
[Termination "XDPS won by resignation"]

1. e4 {[%clk 0:03:00.9]} 1... c5 {[%clk 0:02:56.7]} 2. Nf3 {[%clk 0:03:01]} 2...
d6 {[%clk 0:02:55.7]} 3. d4 {[%clk 0:03:01.4]} 3... Nf6 {[%clk 0:02:55.3]} 4.
Nc3 {[%clk 0:03:01.4]} 4... cxd4 {[%clk 0:02:55.5]} 5. Nxd4 {[%clk 0:03:02.3]}
5... a6 {[%clk 0:02:55.5]} 6. Be2 {[%clk 0:03:02.6]} 6... e5 {[%clk 0:02:53.9]}
7. Nf3 {[%clk 0:03:02.8]} 7... Be7 {[%clk 0:02:49.3]} 8. Bg5 {[%clk 0:03:01.4]}
8... Be6 {[%clk 0:02:46]} 9. Bxf6 {[%clk 0:03:01.1]} 9... Bxf6 {[%clk
0:02:46.6]} 10. O-O {[%clk 0:03:00]} 10... O-O {[%clk 0:02:45.4]} 11. Nd5 {[%clk
0:03:00.7]} 11... Nd7 {[%clk 0:02:44.2]} 12. Bc4 {[%clk 0:03:00.3]} 12... Rc8
{[%clk 0:02:43.4]} 13. Qe2 {[%clk 0:03:00]} 13... b5 {[%clk 0:02:39.8]} 14. Bb3
{[%clk 0:03:00.1]} 14... Nc5 {[%clk 0:02:36.7]} 15. Rfd1 {[%clk 0:03:00.4]}
15... Bg5 {[%clk 0:02:31.7]} 16. c3 {[%clk 0:02:53.4]} 16... Kh8 {[%clk
0:02:18]} 17. Bc2 {[%clk 0:02:46.7]} 17... Bg4 {[%clk 0:02:09.4]} 18. h3 {[%clk
0:02:45.8]} 18... Be6 {[%clk 0:01:57.3]} 19. a4 {[%clk 0:01:50.1]} 19... bxa4
{[%clk 0:01:26.5]} 20. Bxa4 {[%clk 0:01:51]} 20... f5 {[%clk 0:01:25.8]} 21.
exf5 {[%clk 0:01:41.3]} 21... Rxf5 {[%clk 0:01:13.5]} 22. Bc2 {[%clk 0:01:38.2]}
22... Rf7 {[%clk 0:01:00.4]} 23. b4 {[%clk 0:01:32]} 23... Nd7 {[%clk
0:00:52.2]} 24. Rxa6 {[%clk 0:01:31.2]} 24... Nb8 {[%clk 0:00:34.3]} 25. Rxd6
{[%clk 0:01:18.4]} 25... Qxd6 {[%clk 0:00:31.9]} 26. Nxg5 {[%clk 0:01:19]} 26...
Rd7 {[%clk 0:00:10]} 27. Ne3 {[%clk 0:00:29.1]} 27... Qa6 {[%clk 0:00:09.7]} 28.
Qxa6 {[%clk 0:00:27.8]} 28... Nxa6 {[%clk 0:00:09.7]} 29. Nxe6 {[%clk
0:00:27.6]} 29... Re7 {[%clk 0:00:07.7]} 30. Nc5 {[%clk 0:00:24.7]} 30... Nxc5
{[%clk 0:00:07.2]} 31. bxc5 {[%clk 0:00:25.6]} 31... Rec7 {[%clk 0:00:06.8]} 32.
c4 {[%clk 0:00:25.3]} 32... Rxc5 {[%clk 0:00:06.9]} 33. Be4 {[%clk 0:00:26.1]}
33... g6 {[%clk 0:00:06.1]} 34. Rd7 {[%clk 0:00:26.3]} 34... R8c7 {[%clk
0:00:06.2]} 35. Rxc7 {[%clk 0:00:25.8]} 35... Rxc7 {[%clk 0:00:06.6]} 36. Bd5
{[%clk 0:00:26.1]} 36... Kg7 {[%clk 0:00:06.8]} 37. Ng4 {[%clk 0:00:26.3]} 37...
e4 {[%clk 0:00:05.5]} 38. Ne3 {[%clk 0:00:25.4]} 38... Re7 {[%clk 0:00:04.5]}
39. c5 {[%clk 0:00:25.9]} 39... Kf6 {[%clk 0:00:04.8]} 40. c6 {[%clk 0:00:26.5]}
40... Ke5 {[%clk 0:00:04.7]} 41. g3 {[%clk 0:00:25.7]} 41... Kd6 {[%clk
0:00:03.7]} 42. Kg2 {[%clk 0:00:24.9]} 42... Kc5 {[%clk 0:00:04]} 43. h4 {[%clk
0:00:24.6]} 43... Kd4 {[%clk 0:00:03]} 44. g4 {[%clk 0:00:17.4]} 44... Kc5
{[%clk 0:00:03.3]} 45. Kg3 {[%clk 0:00:16.5]} 45... h5 {[%clk 0:00:03]} 46. gxh5
{[%clk 0:00:16.2]} 46... gxh5 {[%clk 0:00:03.9]} 47. Kf4 {[%clk 0:00:15.8]}
47... Re8 {[%clk 0:00:03.9]} 48. Bxe4 {[%clk 0:00:15.6]} 48... Rf8+ {[%clk
0:00:04.5]} 49. Nf5 {[%clk 0:00:16.3]} 49... Rf6 {[%clk 0:00:04.4]} 50. Ke5
{[%clk 0:00:16.4]} 50... Re6+ {[%clk 0:00:05.1]} 51. Kxe6 {[%clk 0:00:16.2]} 1-0

[Event "Late-Titled-Tuesday-Blitz-August-29-2023"]
[Site "Chess.com"]
[Date "2023.08.29"]
[Round "6"]
[White "Langusto"]
[Black "Jojo_898"]
[Result "1-0"]
[WhiteElo "2489"]
[BlackElo "2359"]
[TimeControl "180+1"]
[EndTime "15:05:49 PDT"]
[Termination "Langusto won on time"]

1. e4 {[%clk 0:03:00.9]} 1... d6 {[%clk 0:03:00.2]} 2. d4 {[%clk 0:03:00.1]}
2... Nf6 {[%clk 0:03:00.8]} 3. Nc3 {[%clk 0:03:00.7]} 3... g6 {[%clk 0:03:01.4]}
4. h3 {[%clk 0:03:01.2]} 4... c6 {[%clk 0:03:01.8]} 5. a4 {[%clk 0:03:00.7]}
5... Bg7 {[%clk 0:03:01.4]} 6. g4 {[%clk 0:03:01.1]} 6... a6 {[%clk 0:02:51]} 7.
Bg2 {[%clk 0:03:00]} 7... Nbd7 {[%clk 0:02:46.9]} 8. Nge2 {[%clk 0:02:59.6]}
8... e5 {[%clk 0:02:47]} 9. O-O {[%clk 0:02:55.6]} 9... O-O {[%clk 0:02:46.3]}
10. Be3 {[%clk 0:02:54.9]} 10... Qe7 {[%clk 0:02:41]} 11. Ng3 {[%clk 0:02:52.4]}
11... Re8 {[%clk 0:02:24.1]} 12. Qd2 {[%clk 0:02:37.6]} 12... Nf8 {[%clk
0:02:23.7]} 13. f4 {[%clk 0:02:32.9]} 13... exf4 {[%clk 0:02:18.9]} 14. Bxf4
{[%clk 0:02:31.1]} 14... Ne6 {[%clk 0:02:10.7]} 15. Be3 {[%clk 0:02:30.4]} 15...
c5 {[%clk 0:01:52.8]} 16. dxc5 {[%clk 0:00:51.9]} 16... dxc5 {[%clk 0:01:47.8]}
17. g5 {[%clk 0:00:51.7]} 17... Nd7 {[%clk 0:01:42.1]} 18. Nd5 {[%clk 0:00:52]}
18... Qd8 {[%clk 0:01:40.3]} 19. Qf2 {[%clk 0:00:51.4]} 19... Rf8 {[%clk
0:01:39.2]} 20. Nf6+ {[%clk 0:00:51.3]} 20... Kh8 {[%clk 0:01:33.8]} 21. Rad1
{[%clk 0:00:50.3]} 21... Bxf6 {[%clk 0:01:07.1]} 22. gxf6 {[%clk 0:00:49.7]}
22... Qb6 {[%clk 0:01:03]} 23. b3 {[%clk 0:00:36.6]} 23... Ne5 {[%clk
0:00:53.1]} 24. Rd5 {[%clk 0:00:36.8]} 24... Nc6 {[%clk 0:00:51.3]} 25. Rxc5
{[%clk 0:00:33.9]} 25... Nxc5 {[%clk 0:00:45.8]} 26. Bxc5 {[%clk 0:00:34.8]}
26... Qd8 {[%clk 0:00:45.9]} 27. Qf4 {[%clk 0:00:27.3]} 27... Rg8 {[%clk
0:00:40.1]} 28. e5 {[%clk 0:00:21.5]} 28... b6 {[%clk 0:00:35.4]} 29. Bxc6
{[%clk 0:00:18]} 29... Bxh3 {[%clk 0:00:29.8]} 30. Be7 {[%clk 0:00:17.9]} 30...
Qc8 {[%clk 0:00:25.8]} 31. Bg2 {[%clk 0:00:17.3]} 31... Bxg2 {[%clk 0:00:25]}
32. Kxg2 {[%clk 0:00:18.2]} 32... Qxc2+ {[%clk 0:00:25.1]} 33. Rf2 {[%clk
0:00:18.6]} 33... Qc6+ {[%clk 0:00:24.8]} 34. Qe4 {[%clk 0:00:18.3]} 34... Qe6
{[%clk 0:00:21.7]} 35. Qf3 {[%clk 0:00:14]} 35... Qxe5 {[%clk 0:00:20.5]} 36.
Ne4 {[%clk 0:00:14.6]} 36... Qb8 {[%clk 0:00:19.9]} 37. Nd6 {[%clk 0:00:14.7]}
37... Rf8 {[%clk 0:00:18.5]} 38. Qd5 {[%clk 0:00:13.5]} 38... Ra7 {[%clk
0:00:07.8]} 39. Nxf7+ {[%clk 0:00:10.9]} 39... Rxf7 {[%clk 0:00:05.6]} 40. Qxf7
{[%clk 0:00:11.8]} 40... Qg8 {[%clk 0:00:05.6]} 41. Qxg8+ {[%clk 0:00:11.1]}
41... Kxg8 {[%clk 0:00:05.9]} 42. f7+ {[%clk 0:00:11.9]} 1-0